Cogmind - Beta 13 @@@ ROGUE MODE // 2024.04.10 @ 10:25:14 Player: Vorpal Result: Self-destructed Performance ------------- Evolutions (0) 0 Regions Visited (4) 800 Robots Destroyed (18) 90 Value Destroyed (280) 280 Prototype IDs (0) 0 Alien Tech Used (0) 0 Bonus (441) 441 TOTAL SCORE: 1611 Bonus ------- Follower Combat Kills 152 Aligned with FarCom 300 Friendly Fire -11 Cogmind --------- Core Integrity 1/250 Matter 400/400 Energy 125/125 System Corruption 0% Temperature Cool (0) Movement Walking (260) Ox2 Location -9/Mines Parts ------- > --- POWER (1) -------- Light Ion Engine > --- PROPULSION (2) --- Aluminum Leg Aluminum Leg > --- UTILITY (2) ------ High-capacity Storage Unit Medium Matter Pod > --- WEAPON (2) ------- Light Assault Rifle Light Assault Rifle > --- INVENTORY (20) --- Light Ion Engine Small Storage Unit Large Storage Unit Large Storage Unit High-capacity Battery (250) High-capacity Battery (250) Superbattery Seismic Detector ECM Suite ECM Suite Cloak of Protection Core Shielding EM Pulse Gun Particle Gun Light Assault Rifle Light Assault Rifle Light Assault Rifle Signal Generator Peak State ------------ > --- POWER ------------ Light Nuclear Core > --- PROPULSION ------- Aluminum Leg Aluminum Leg > --- UTILITY ---------- High-capacity Storage Unit Medium Matter Pod > --- WEAPON ----------- Light Assault Rifle Light Assault Rifle > --- INVENTORY -------- Small Storage Unit Large Storage Unit Large Storage Unit High-capacity Battery High-capacity Battery Superbattery Seismic Detector ECM Suite ECM Suite Cloak of Protection Core Shielding EM Pulse Gun Particle Gun Light Assault Rifle Light Assault Rifle Signal Generator [Rating: 12] Favorites ----------- Power Light Ion Engine Engine Light Ion Engine Power Core Light Nuclear Core Propulsion Light Treads Treads Light Treads Leg Aluminum Leg Wheel Wheel Utility Medium Matter Pod Storage Medium Matter Pod Weapon Light Assault Rifle Energy Gun Medium Laser Ballistic Gun Light Assault Rifle Launcher Grenade Launcher Build | -11 -10 -10 -10 -9 ------- Run | Yrd Mat Min Exi Min Slots Evolved . | . . . . . Power . | . . . . . Propulsion . | . . . . . Utility . | . . . . . Weapon . | . . . . . Parts Attached 26 | 6 9 3 . 8 Power 6 | 1 . 1 . 4 Engine 5 | 1 . 1 . 3 Core 1 | . . . . 1 Reactor . | . . . . . Propulsion 8 | 2 4 . . 2 Treads 2 | . 2 . . . Leg 4 | . 2 . . 2 Wheel 2 | 2 . . . . Hover . | . . . . . Flight . | . . . . . Utility 4 | 1 3 . . . Device . | . . . . . Storage 4 | 1 3 . . . Processor . | . . . . . Hackware . | . . . . . Protection . | . . . . . Artifact . | . . . . . Weapon 8 | 2 2 2 . 2 Energy Gun 2 | 1 1 . . . Energy Cannon . | . . . . . Ballistic Gun 5 | 1 1 1 . 2 Ballistic Cannon . | . . . . . Launcher 1 | . . 1 . . Special Weapon . | . . . . . Impact Weapon . | . . . . . Slashing Weapon . | . . . . . Piercing Weapon . | . . . . . Special Melee Weapon . | . . . . . Unidentified Prototypes . | . . . . . Parts Lost 5 | . . . . 5 Power 2 | . . . . 2 Propulsion 2 | . . . . 2 Utility . | . . . . . Weapon 1 | . . . . 1 Highest Loss Streak 4 | . . . . 4 To Critical Strikes . | . . . . . Average Slot Usage (%) 99 | . 99 100 100 99 Engine 13 | . 14 14 14 13 Treads 15 | . 4 28 28 7 Leg 9 | . 11 . . 20 Wheel 2 | . 12 . . . Storage 27 | . 27 28 28 28 Energy Gun 4 | . 14 6 . . Ballistic Gun 17 | . 14 14 14 24 Launcher 5 | . . 7 14 3 Naked Turns . | . . . . . Heaviest Build 51 | 14 51 50 49 49 Greatest Support 40 | 26 40 40 40 40 Greatest Overweight (x) 3 | 3 2 1 1 2 Average Overweight (x) 1 | . 1 1 1 1 Largest Inventory Capacity 20 | 8 20 20 20 20 Average Capacity 19 | 7 18 20 20 20 Most Carried 20 | 8 16 20 20 20 Average Carried 17 | 5 13 18 19 18 Final Capacity 20 | 8 20 20 20 20 Final Carried 20 | 6 14 20 20 18 Class Distribution -------------------- 74% | Mutant 25% | Scavenger-Mutant Dominant Class ---------------- Mutant | -10/Materials Mutant | -10/Mines Mutant | -10/Exiles Scavenger-Mutant | -9/Mines Resources | -11 -10 -10 -10 -9 ----------- Run | Yrd Mat Min Exi Min Matter Collected 715 | 207 191 205 . 112 Remotely . | . . . . . Salvage Created 498 | . 191 95 . 212 Parts 39 | . 24 2 . 13 Haulers Intercepted . | . . . . . Recyclers Shooed . | . . . . . Parts Field Recycled . | . . . . . Retrieved Matter . | . . . . . Parts Self-Destructed . | . . . . . Prevented . | . . . . . Kills | -11 -10 -10 -10 -9 ------- Run | Yrd Mat Min Exi Min Combat Hostiles Destroyed 21 | . 9 5 . 7 Guns 18 | . 9 2 . 7 AOE 3 | . . 3 . . Classes Destroyed 5 | . 3 2 . . Builder 1 | . 1 . . . Recycler 1 | . . 1 . . Swarmer 12 | . 8 . . 4 Grunt 4 | . 1 . . 3 Assembled 5 | . . 5 . . Best Kill Streak 4 | . 4 4 . 4 Combat Bots Only 4 | . 4 4 . 4 Max Kills in Single Turn 2 | . 1 2 . 1 Gunslinging . | . . . . . Exploded 1 | . . 1 . . Melee . | . . . . . Uniques/NPCs Destroyed . | . . . . . Combat | -11 -10 -10 -10 -9 -------- Run | Yrd Mat Min Exi Min Hostile Shots Fired 186 | . 81 8 . 97 Missed 49 | . 24 4 . 21 Damage Taken 1262 | . 454 39 . 769 Core 249 | . 108 6 . 135 Absorbed by Shields . | . . . . . Core Remaining (%) 100 | 100 . . . . Volleys Fired 71 | . 26 5 . 40 Largest 2 | . 2 2 . 2 Hottest 70 | . 70 50 . 40 Shots Fired 112 | . 52 8 . 52 Gun 109 | . 52 5 . 52 Cannon . | . . . . . Launcher 3 | . . 3 . . Special . | . . . . . Kinetic 83 | . 26 5 . 52 Thermal 26 | . 26 . . . Explosive 3 | . . 3 . . Electromagnetic . | . . . . . Robot Hit Streak 6 | . 6 4 . 5 Robot Miss Streak 5 | . 5 1 . 4 Penetration Max . | . . . . . Secondary Targets 4 | . 2 . . 2 Max Gunslinging Chain 1 | . 1 . . 1 Shots Hit Robots 61 | . 29 4 . 28 Core Hits 34 | . 11 10 . 13 Critical Kills . | . . . . . Critical Parts Destroyed . | . . . . . Critical Strikes 1 | . 1 . . . Burn 1 | . 1 . . . Melee Attacks . | . . . . . Impact . | . . . . . Slashing . | . . . . . Piercing . | . . . . . Sneak Attacks . | . . . . . Combat Hostiles . | . . . . . Follow-up Attacks . | . . . . . Damage Inflicted 838 | . 393 182 . 263 Guns 696 | . 393 41 . 262 Cannons . | . . . . . Explosions 137 | . . 137 . . Melee . | . . . . . Ramming 5 | . . 4 . 1 Kinetic 470 | . 167 41 . 262 Thermal 226 | . 226 . . . Explosive 137 | . . 137 . . Electromagnetic . | . . . . . Impact . | . . . . . Slashing . | . . . . . Piercing . | . . . . . Highest Corruption . | . . . . . Average Corruption . | . . . . . Corruption Purged . | . . . . . Corruption Blocked . | . . . . . Overload Shots . | . . . . . Overflow Damage . | . . . . . Projectiles . | . . . . . Explosions . | . . . . . Melee . | . . . . . Knockbacks . | . . . . . Impact . | . . . . . Kinetic . | . . . . . Secondary . | . . . . . Self-Inflicted Damage . | . . . . . Shots . | . . . . . Rammed . | . . . . . Targets Rammed 3 | . . 1 . 2 Kicked 2 | . . . . 2 Crushed 1 | . . 1 . . Highest Temperature 72 | . 72 . . 21 Average Temperature 20 | . 23 . . 9 Received Heat Transfer 228 | . 18 . . 210 Siege Activations . | . . . . . Robots Corrupted . | . . . . . Combat Hostiles . | . . . . . Parts Fried . | . . . . . Impact Corruptions . | . . . . . Robots Melted . | . . . . . Combat Hostiles . | . . . . . Parts Melted . | . . . . . Heat Transferred 740 | . 740 . . . Parts Sabotaged . | . . . . . Parts Stolen . | . . . . . Parts Stripped . | . . . . . Power Chain Reactions . | . . . . . Alert | -11 -10 -10 -10 -9 ------- Run | Yrd Mat Min Exi Min Peak Influence 271 | . 271 212 . 125 Initial 68 | . . 68 . . Average 68 | . 145 74 . 13 Maximum Alert Level 1 | . 1 1 . . Low Security (%) 90 | 100 71 94 . 100 Level 1 9 | . 28 5 . . Level 2 . | . . . . . Level 3 . | . . . . . Level 4 . | . . . . . Level 5 . | . . . . . High Security . | . . . . . Max Security . | . . . . . Squads Dispatched 2 | . 1 1 . . Investigation . | . . . . . Extermination . | . . . . . Reinforcement 1 | . 1 . . . Assault 1 | . . 1 . . Garrison . | . . . . . Intercept . | . . . . . Searches Triggered . | . . . . . Construction Impeded . | . . . . . Haulers Reinforced . | . . . . . Active Scanning Responses . | . . . . . Cargo Convoy Interrupts . | . . . . . Stealth | -11 -10 -10 -10 -9 --------- Run | Yrd Mat Min Exi Min Distress Signals 1 | . 1 . . . Communications Jammed . | . . . . . Distress Signals . | . . . . . Times Spotted 42 | . 20 14 . 8 Peak Tracking Total 5 | . 5 4 . 4 Tactical Retreats 2 | . 1 . . 1 Traps | -11 -10 -10 -10 -9 ------- Run | Yrd Mat Min Exi Min Traps Triggered . | . . . . . Indirectly . | . . . . . Trap Hack Attempts . | . . . . . Triggered . | . . . . . Disarmed . | . . . . . Reprogrammed . | . . . . . Reused . | . . . . . Traps Extracted . | . . . . . Installed . | . . . . . Triggered . | . . . . . Machines | -11 -10 -10 -10 -9 ---------- Run | Yrd Mat Min Exi Min Machines Disabled . | . . . . . Max in Single Turn . | . . . . . Machines Repaired . | . . . . . Machines Dismantled . | . . . . . Machines Sabotaged . | . . . . . Overloaded Fab Kills . | . . . . . Hacking | -11 -10 -10 -10 -9 --------- Run | Yrd Mat Min Exi Min Machines Accessed 1 | . 1 . . . Terminals . | . . . . . Fabricators . | . . . . . Repair Stations . | . . . . . Recycling Units 1 | . 1 . . . Scanalyzers . | . . . . . Garrison Access . | . . . . . Total Hacks 4 | . 4 . . . Successful 2 | . 2 . . . Failed 2 | . 2 . . . Catastrophic . | . . . . . Database Lockouts . | . . . . . Manual 4 | . . . 4 . Terminals . | . . . . . Fabricators . | . . . . . Repair Stations . | . . . . . Recycling Units 4 | . 4 . . . Scanalyzers . | . . . . . Garrison Access . | . . . . . Terminal Hacks . | . . . . . Fabricator Hacks . | . . . . . Repair Station Hacks . | . . . . . Recycling Unit Hacks 2 | . 2 . . . Recycle Component 1 | . 1 . . . Retrieve Matter 1 | . 1 . . . Scanalyzer . | . . . . . Garrison Access Hacks . | . . . . . Unauthorized Hacks . | . . . . . Terminals . | . . . . . Fabricators . | . . . . . Repair Stations . | . . . . . Recycling Units . | . . . . . Scanalyzers . | . . . . . Garrison Access . | . . . . . Data Cores Recovered . | . . . . . Used . | . . . . . Hacking Detections . | . . . . . Full Trace Events . | . . . . . Feedback Events . | . . . . . Feedback Blocked . | . . . . . Robot Schematics Acquired . | . . . . . Robots Built . | . . . . . Authchips . | . . . . . Time . | . . . . . Total Robot Build Rating . | . . . . . Part Schematics Acquired . | . . . . . Parts Built . | . . . . . Authchips . | . . . . . Time . | . . . . . Total Part Build Rating . | . . . . . Parts Repaired . | . . . . . Time . | . . . . . Parts Recycled 1 | . 1 . . . Recycled Matter . | . . . . . Retrieved Matter . | . . . . . Retrieved Components . | . . . . . Parts Scanalyzed . | . . . . . Part Schematics Acquired . | . . . . . Parts Damaged . | . . . . . Bothacking | -11 -10 -10 -10 -9 ------------ Run | Yrd Mat Min Exi Min Used RIF Installer . | . . . . . Robots Hacked . | . . . . . Non-combat . | . . . . . Combat . | . . . . . Robot Hacks Applied . | . . . . . Relay Couplers Released . | . . . . . Fabnet Peak Effective % . | . . . . . Robots Rewired . | . . . . . Allies Hacked . | . . . . . Hacks Repelled . | . . . . . Allies | -11 -10 -10 -10 -9 -------- Run | Yrd Mat Min Exi Min Total Allies 5 | . . 4 . 1 Largest Group 3 | . . 3 1 1 Highest-Rated Group 40 | . . 40 31 31 Highest-Rated Ally 31 | . . 31 31 31 Total Orders . | . . . . . Ally Attacks 29 | . . 29 . . Total Damage 330 | . . 330 . . Kills 12 | . . 12 . . Allies Corrupted . | . . . . . Allies Melted . | . . . . . Intel | -11 -10 -10 -10 -9 ------- Run | Yrd Mat Min Exi Min Robot Analysis Total . | . . . . . Derelict Logs Recovered 2 | . . 2 . . Drone Launches . | . . . . . Drone Recoveries . | . . . . . Exploration | -11 -10 -10 -10 -9 ------------- Run | Yrd Mat Min Exi Min Turns Passed 3293 | 61 771 832 519 1110 Spaces Moved 1373 | 41 411 319 216 386 Core 16 | 16 . . . . Treads 673 | . 48 319 216 90 Legs 402 | . 106 . . 296 Wheels 282 | 25 257 . . . Hover . | . . . . . Flight . | . . . . . Fastest Speed 50 | 50 90 240 240 240 Average Speed 215 | 106 157 240 240 255 Slowest Speed 260 | 200 260 240 240 260 Overloaded Moves . | . . . . . Propulsion Burnouts . | . . . . . Robots Hopped . | . . . . . Cave-ins Triggered . | . . . . . Exploration Rate (%) 46 | 5 70 58 41 59 Regions Visited 4 Branch Regions 3 Pre-discovered Areas 2 | . . 2 . . Known Exits Taken . | . . . . . Unknown Exits Taken 4 | 1 1 1 1 . Scrap Searched 4 | . . 2 . 2 Spaces Dug . | . . . . . Terrain Destroyed 25 | . . 25 . . Melee . | . . . . . Projectile . | . . . . . AOE 25 | . . 25 . . Terrain Rammed . | . . . . . Walls Destroyed . | . . . . . Machines Disabled . | . . . . . Actions | -11 -10 -10 -10 -9 --------- Run | Yrd Mat Min Exi Min Total 1602 | 58 482 377 219 466 Wait 74 | . 15 38 . 21 Move 1369 | 40 410 318 215 386 Hop . | . . . . . Pick Up 45 | 12 16 9 2 6 Fast Attach . | . . . . . Attach 13 | 6 1 . . 6 Detach . | . . . . . Swap 13 | . 8 3 . 2 Drop 14 | . 6 3 2 3 Fire 71 | . 26 5 . 40 Melee . | . . . . . Ram . | . . . . . Kick 2 | . . . . 2 Crush 1 | . . 1 . . Escape Stasis . | . . . . . Rewire . | . . . . . Trap . | . . . . . Miscellaneous . | . . . . . Route ------- -11/Scrapyard -10/Materials (discovered 4 exits: [*Mat x2] / [*Min x2]) -10/Mines (discovered 2 exits: [*Mat] / *Exi) -10/Exiles -9/Mines History --------- Turn | Location | Event 18 | -11/Scrapyard | Discovered new exit (range 16) 62 | -11/Scrapyard | Entered Materials 147 | -10/Materials | Discovered new exit (range 6) 308 | -10/Materials | Build established: Mutant 327 | -10/Materials | Discovered new exit (range 10) 463 | -10/Materials | Discovered new exit (range 10) 732 | -10/Materials | Discovered new exit (range 13) 833 | -10/Materials | Entered Mines 896 | -10/Mines | Found a damaged Exp. Sensor Array with a note attached 901 | -10/Mines | Found Prototype Device 935 | -10/Mines | Assisted by bots powering up and referring to "LRC-V3" 1129 | -10/Mines | Assembled infested the area 1270 | -10/Mines | Discovered new exit (range 8) 1456 | -10/Mines | Learned location of Zion (-7) 1469 | -10/Mines | Met a Derelict testing a Signal Generator 1502 | -10/Mines | Found Signal Generator 1653 | -10/Mines | Deemed a non-threat by the Exiles lab entrance 1655 | -10/Mines | Discovered new exit (range 5) 1665 | -10/Mines | Entered Exiles 1665 | -10/Exiles | Accompanied by 1 ally 1725 | -10/Exiles | Met 8R-AWN 1764 | -10/Exiles | Met EX-HEX 1843 | -10/Exiles | Met EX-BIN 1872 | -10/Exiles | Aligned with FarCom system 1874 | -10/Exiles | Given EX-Vault access code 1929 | -10/Exiles | Opened EX-Vault 1940 | -10/Exiles | Found Prototype Device 1948 | -10/Exiles | Found Prototype Storage 2004 | -10/Exiles | Warned to stay clear of 0b10 Research branches 2156 | -10/Exiles | Discovered new exit (range 14) 2184 | -10/Exiles | Stole two prototypes: Superbattery, Cloak of Protection 2184 | -10/Exiles | Entered Mines 2184 | -9/Mines | Accompanied by 1 ally 2411 | -9/Mines | Core integrity fell below 50% 2476 | -9/Mines | Core integrity fell below 20% 2513 | -9/Mines | Lost 4 parts (1p2n1w) 2577 | -9/Mines | Received a Mining Laser from a helpful Derelict 2651 | -9/Mines | YI-UF0 nonchalantly dropped a Grenade Launcher on the ground 2689 | -9/Mines | Found a hidden stash of uninstalled traps 2759 | -9/Mines | Build established: Scavenger-Mutant 3294 | -9/Mines | Self-destructed Last Messages --------------- down? Here, take my spare." DS-Y8Z(g): "You're apparently new around these parts, I'll cover you." DS-Y8Z(g): "Mining lasers are a lot more useful than you might think..." Searching scrap... Found Plasma Cutter. Found Disposable Heat Sink. Found Beam Cannon. Found Com. Wheel. Found 32 Matter. YI-UF0 nonchalantly drops a Grenade Launcher on the ground. A stash of uninstalled traps is collected here! DS-Y8Z(g): "You look like you can take it from here!" DS-Y8Z(g) slips back into the shadows. YI-UF0 mumbles something. Kicked K-01 Serf. Kicked T-07 Excavator out of the way. Map ----- +----------------------------------------------------+ | ???????????????????????????###?# #?? #??????????? | | ???????????????????????????????# #?? ???????????? | | ???????????????????????????????# ### #??????????? | | ???????????????????????????????# #??????????? | | ???????????????????????????????# #####??????????? | | ???????????????????????????????# ]#????????????### | | ???????????????????????????????# ##??????????## | | ??????????????????????????????## ##?????????# | | ????????????????????????????### #######???# | | ???????????????????????????## ##??## | | ??????????????????????????## ] #???### | | ?????????????????????????## %! ##????? | | ?????????????????????????# = | #????? | | ?????????????????????????# #???? | | ?????????????????????????## ## #???? | | ??????????????????????????# ###### ###???? | | ?????????????????????####?## ##????####?????? | | ??????? ##?????????### ##?## ##????????????? | | ???????? ???????# ##?##### #????????????? | | ????????# ??????# #####?## #???#####????? | | ????????# ?????# #### #??# ##???? | | ????????# ######## r t ### #???? | | ?????????# #?## | #???? | | ???????????? $ #### #????? | | ???????????????????# % ## ## ##????? | | ???????????????????# ####@ ## ### #???#?????? | | ???????????????????# #??# =%*=### ##?# #?????????? | | ???????????????????# #??##* [### #??# ########### | | ???????????????????# #???## = ## #??# | | ?????????????????? #???###%= #??############# | | ????????????????# #?????#% ####??????????????# | | ??????????????? #?##### %#?????????????????# | | ????????????? ##?# #?????????????????# | | ???????????? ##??# [ #???############### | | ?????????? #????# #####???# # | | ????????? ### ?????# ####????# # | | ????????##???## #?????#% # ##???# """" """" # | | ??????????????####?????## ##### """" """" | | ???????????????????????# % """" """" | | ??????????????????????# ###### # | | ??????????????????????# ##????# """" """" # | | ??????????????????????## ##?????# """" """" # | | ???????????????????????######??????# """" """" | | ???????????????????????????????????# | | ???????????????????????????????????# """" """" # | | ???????????????????????????????????# """" """" # | | ???????????????????????????????????# """" """" # | | ???????????????????????????????????# ?? # | | ???????????????????????????????????# ? ?? # | | ???????????????????????????????????######?###??##? | +----------------------------------------------------+ Best States ------------- Heat Dissipation 25 Energy Generation 14 Energy Capacity 250 Matter Stores 400 Matter Capacity 400 Sight Range 16 Terrain Scan Density 10 Evasion (%) 42 Recoil Reduction 2 Item Schematics ----------------- None Robot Schematics ------------------ None Fabricated ------------ Nothing Alien Tech Used ----------------- None Achievements -------------- Dramatic Entrance Challenges ------------ None Game ------ Seed BombCoolingTearclaws Manual? 0 Play Time 00:29:44 Cumulative 5.1 hours Start 2024.04.10 @ 08:56:27 End 2024.04.10 @ 10:25:14 Sessions 1 Manual Loads 0 Difficulty Rogue Special Mode None Game No. 5 Rogue 5 Adventurer 0 Explorer 0 Win Type - Total 0 Types 0/0/0/0/0/0/0/0/0 Lore% 1 Gallery% 9 Achievement% 9 Wizard Run 0 Options --------- Layout 1 ASCII 0 Keyboard 0 Movement Mouse Keybinds 0 Fullscreen 2 Font 24/Tallcaps Map View 50x35 Zoom Use 0% Tactical HUD 0 Map Filters NONE Filters NONE Steam 1 RUN: 2062f3f8-a998-4cee-b940-14f91c158360